fUST/lending_fUST_20240918
["ID","MTS","AMOUNT","RATE_DAILY","PERIOD"]
[338439389,1726639854447,-500.0,0.00019178,2]
[338439390,1726639854458,-782.26,0.00019178,2]
[338439391,1726639854470,-162.081552,0.00019178,2]
[338439392,1726639854480,-500.0,0.00019178,2]
[338439393,1726639854492,-500.0,0.00019178,2]
[338439394,1726639854502,-1407.58,0.00019178,2]
[338439395,1726639854514,-504.1266409,0.00019178,2]
[338439396,1726639854524,-151.0,0.00019178,2]
[338439397,1726639854533,-500.0,0.00019178,2]
[338439398,1726639854542,-151.0,0.00019178,2]
[338439399,1726639854552,-5397.41,0.00019178,2]
[338439400,1726639854563,-500.0,0.00019178,2]
[338439401,1726639854573,-500.0,0.00019178,2]
[338439402,1726639854584,-296.28077995,0.00019178,2]
[338439403,1726639854594,-1308.21,0.00019178,2]
[338439404,1726639854604,-500.0,0.00019178,2]
[338439405,1726639854616,-2412.55,0.00019178,2]
[338439406,1726639854626,-500.0,0.00019178,2]
[338439407,1726639854636,-151.0,0.00019178,2]
[338439408,1726639854647,-86345.18,0.00019178,2]
[338439409,1726639854660,-151.0,0.00019178,2]
[338439410,1726639854672,-857.8,0.00019178,2]
[338439411,1726639854683,-500.0,0.00019178,2]
[338439412,1726639854695,-532.45933118,0.00019178,2]
[338439413,1726639854705,-151.0,0.00019178,2]
[338439414,1726639854716,-500.0,0.00019178,2]
[338439415,1726639854725,-1243.87,0.00019178,2]
[338439416,1726639854735,-500.0,0.00019178,2]
[338439417,1726639854745,-1295.28,0.00019178,2]
[338439418,1726639854755,-151.0,0.00019178,2]
[338439419,1726639854767,-500.0,0.00019178,2]
[338439420,1726639854777,-151.0,0.00019178,2]
[338439421,1726639854789,-500.0,0.00019178,2]
[338439422,1726639854801,-500.0,0.00019178,2]
[338439423,1726639854811,-151.0,0.00019178,2]
[338439424,1726639854820,-500.0,0.00019178,2]
[338439425,1726639854831,-500.0,0.00019178,2]
[338439426,1726639854841,-522.21529011,0.00019178,2]
[338439427,1726639854851,-500.0,0.00019178,2]
[338439428,1726639854861,-548.11545847,0.00019178,2]
[338439429,1726639854872,-506.91216179,0.00019178,2]
[338439430,1726639854882,-619.65,0.00019178,2]
[338439431,1726639854891,-739.96,0.00019178,2]
[338439432,1726639854902,-500.0,0.00019178,2]
[338439433,1726639854914,-2522.05,0.00019178,2]
[338439434,1726639854925,-602.88926032,0.00019178,2]
[338439435,1726639854936,-500.0,0.00019178,2]
[338439436,1726639854947,-727.64,0.00019178,2]
[338439437,1726639854957,-226.60859,0.00019178,2]
[338439438,1726639854968,-226.60859,0.00019178,2]
[338439439,1726639854979,-226.60859,0.00019178,2]
[338439440,1726639854988,-2368.01,0.00019178,2]
[338439441,1726639854998,-500.0,0.00019178,2]
[338439442,1726639855010,-735.39,0.00019178,2]
[338439443,1726639855020,-500.0,0.00019178,2]
[338439444,1726639855031,-500.0,0.00019178,2]
[338439445,1726639855041,-500.0,0.00019178,2]
[338439446,1726639855052,-1440.13,0.00019178,2]
[338439447,1726639855063,-226.60859,0.00019178,2]
[338439448,1726639855075,-226.60859,0.00019178,2]
[338439449,1726639855085,-2238.04,0.00019178,2]
[338439450,1726639855095,-501.16309341,0.00019178,2]
[338439451,1726639855106,-226.60859,0.00019178,2]
[338439452,1726639855117,-1479.67,0.00019178,2]
[338439453,1726639855127,-500.0,0.00019178,2]
[338439454,1726639855138,-10328.85,0.00019178,2]
[338439455,1726639855149,-500.0,0.00019178,2]
[338439456,1726639855161,-2224.36,0.00019178,2]
[338439457,1726639855171,-4417.02,0.00019178,2]
[338439458,1726639855182,-508.16464804,0.00019178,2]
[338439459,1726639855191,-500.0,0.00019178,2]
[338439460,1726639855201,-500.0,0.00019178,2]
[338439461,1726639855211,-500.0,0.00019178,2]
[338439462,1726639855222,-500.0,0.00019178,2]
[338439463,1726639855232,-500.0,0.00019178,2]
[338439464,1726639855242,-536.19682184,0.00019178,2]
[338439465,1726639855253,-830.72,0.00019178,2]
[338439466,1726639855263,-500.0,0.00019178,2]
[338439467,1726639855275,-2690.53,0.00019178,2]
[338439468,1726639855284,-1245.85,0.00019178,2]
[338439469,1726639855293,-309.0,0.00019178,2]
[338439470,1726639855305,-1254.09,0.00019178,2]
[338439471,1726639855316,-2250.32,0.00019178,2]
[338439472,1726639855326,-1518.35,0.00019178,2]
[338439473,1726639855336,-740.37,0.00019178,2]
[338439474,1726639855346,-500.0,0.00019178,2]
[338439475,1726639855357,-530.2,0.00019178,2]
[338439476,1726639855368,-500.0,0.00019178,2]
[338439477,1726639855379,-500.0,0.00019178,2]
[338439478,1726639855390,-500.0,0.00019178,2]
[338439479,1726639855401,-500.0,0.00019178,2]
[338439480,1726639855413,-500.0,0.00019178,2]
[338439481,1726639855423,-500.0,0.00019178,2]
[338439482,1726639855432,-500.0,0.00019178,2]
[338439483,1726639855443,-165.467769,0.00019178,2]
[338439484,1726639855454,-166.890694,0.00019178,2]
[338439485,1726639855465,-166.425611,0.00019178,2]
[338439486,1726639855476,-151.0,0.00019178,2]
[338439487,1726639855487,-164.4218,0.00019178,2]
[338439488,1726639855500,-151.0,0.00019178,2]
[338439489,1726639855510,-151.0,0.00019178,2]
[338439490,1726639855521,-151.0,0.00019178,2]
[338439491,1726639855531,-151.0,0.00019178,2]
[338439492,1726639855540,-1515.011366,0.00019178,2]
[338439493,1726639855549,-44539.98067789,0.000192,2]
[338439494,1726639856544,-500.0,0.00019178,2]
[338439495,1726639856554,-500.0,0.00019178,2]
[338439496,1726639856564,-267.80655226,0.00019178,2]
[338439497,1726639856574,-500.0,0.00019178,2]
[338439498,1726639856583,-500.0,0.00019178,2]
[338439499,1726639856593,-500.0,0.00019178,2]
[338439500,1726639856602,-500.0,0.00019178,2]
[338439501,1726639856612,-500.0,0.00019178,2]
[338439502,1726639856621,-500.0,0.00019178,2]
[338439503,1726639856630,-500.0,0.00019178,2]
[338439504,1726639856642,-500.0,0.00019178,2]
[338439505,1726639856651,-500.0,0.00019178,2]
[338439506,1726639856662,-12175.78899574,0.000192,2]
[338439507,1726639856674,-716.53763436,0.000192,2]
[338439508,1726639857001,-500.0,0.00019178,2]
[338439509,1726639857011,-269.30911483,0.00019178,2]
[338439510,1726639857023,-230.69088517,0.00019178,2]
[338439511,1726639857033,-126.75075253,0.00019178,2]
[338439520,1726640354535,1191.99,0.00023,60]
[338439527,1726640900294,10091.43595808,0.000125,2]
[338439528,1726640923438,26919.70075346,0.000129,2]
[338439550,1726641032404,-300.0,0.00018084,2]
[338439551,1726641032416,-300.0,0.00018084,2]
[338439552,1726641032427,-900.93270963,0.00018085,2]
[338439635,1726641038340,-16876.34547785,0.00018085,2]
[338439637,1726641038355,-7122.72181252,0.00018085,2]
[338439639,1726641038368,-1000.0,0.00019,19]
[338439640,1726641038378,-3719.88404376,0.00019,2]
[338439642,1726641038392,-1000.0,0.00019048,2]
[338439644,1726641038403,-992.88969804,0.00019078,2]
[338439646,1726641038414,-154.25969702,0.00019137,2]
[338439648,1726641038425,-326.10011429,0.00019137,2]
[338439649,1726641038435,-500.0,0.00019137,2]
[338439651,1726641038445,-500.0,0.00019137,2]
[338439653,1726641038455,-500.0,0.00019137,2]
[338439655,1726641038467,-500.0,0.00019137,2]
[338439657,1726641038478,-318.09749541,0.00019137,2]
[338439659,1726641038489,-298.83656117,0.00019137,2]
[338439661,1726641038500,-267.16473998,0.00019137,2]
[338439663,1726641038510,-55.41577832,0.00019137,2]
[338439665,1726641038524,-444.58422168,0.00019137,2]
[338439666,1726641038536,-500.0,0.00019137,2]
[338439667,1726641038548,-500.0,0.00019137,2]
[338439668,1726641038559,-283.64626947,0.00019137,2]
[338439669,1726641038570,-500.0,0.00019137,2]
[338439670,1726641038579,-500.0,0.00019137,2]
[338439671,1726641038590,-279.51399846,0.00019137,2]
[338439672,1726641038603,-220.48600154,0.00019137,2]
[338439673,1726641038614,-300.0,0.00019137,2]
[338439674,1726641038624,-500.0,0.00019137,2]
[338439675,1726641038634,-500.0,0.00019137,2]
[338439676,1726641038645,-500.0,0.00019137,2]
[338439677,1726641038656,-370961.95905,0.00019138,3]
[338439678,1726641038665,-29213.3649727,0.00019138,3]
[338439679,1726641038677,-2977.13514684,0.0001915,2]
[338439680,1726641038687,-502.71389276,0.00019158,2]
[338439681,1726641038698,-29213.3649727,0.00019168,3]
[338439682,1726641038709,-522.25634702,0.00019173,2]
[338439683,1726641038720,-500.0,0.00019173,2]
[338439684,1726641038731,-591.02249132,0.00019173,2]
[338439685,1726641038743,-500.0,0.00019173,2]
[338439686,1726641038755,-500.37104256,0.00019173,2]
[338439687,1726641038766,-500.48891412,0.00019173,2]
[338439688,1726641038775,-500.92865773,0.00019173,2]
[338439689,1726641038786,-500.4431137,0.00019173,2]
[338439690,1726641038797,-500.76551568,0.00019173,2]
[338439691,1726641038808,-360.07202762,0.00019173,2]
[338439692,1726641038818,-513.32263156,0.00019173,2]
[338439693,1726641038828,-254.69698023,0.00019173,2]
[338439694,1726641038837,-159.9027995,0.00019173,2]
[338439695,1726641038848,-160.04022025,0.00019173,2]
[338439696,1726641038858,-200.91528279,0.00019173,2]
[338439697,1726641038868,-500.78291911,0.00019173,2]
[338439698,1726641038879,-500.50555096,0.00019173,2]
[338439699,1726641038889,-500.49163467,0.00019173,2]
[338439700,1726641038900,-543.61726829,0.00019173,2]
[338439701,1726641038911,-500.0,0.00019173,2]
[338439702,1726641038923,-160.11335754,0.00019173,2]
[338439703,1726641038934,-500.0,0.00019173,2]
[338439704,1726641038944,-500.0,0.00019173,2]
[338439705,1726641038954,-538.72167419,0.00019173,2]
[338439706,1726641038963,-500.35776297,0.00019173,2]
[338439707,1726641038973,-500.0,0.00019173,2]
[338439708,1726641038983,-500.38098052,0.00019173,2]
[338439709,1726641038993,-500.99242898,0.00019173,2]
[338439710,1726641039003,-501.02580175,0.00019173,2]
[338439711,1726641039013,-500.0,0.00019173,2]
[338439712,1726641039024,-1441.30764285,0.00019177,2]
[338439713,1726641039033,-10118.86597317,0.00019178,5]
[338439714,1726641039042,-1465.12116756,0.00019178,5]
[338439715,1726641039052,-281.83210534,0.00019178,2]
[338439716,1726641039061,-500.0,0.00019178,2]
[338439717,1726641039071,-500.0,0.00019178,2]
[338439718,1726641039083,-500.0,0.00019178,2]
[338439719,1726641039091,-500.0,0.00019178,2]
[338439720,1726641039101,-500.0,0.00019178,2]
[338439721,1726641039110,-1000.0,0.00019178,2]
[338439722,1726641039120,-500.0,0.00019178,2]
[338439723,1726641039129,-500.0,0.00019178,2]
[338439724,1726641039138,-500.0,0.00019178,2]
[338439725,1726641039148,-502.35,0.00019178,2]
[338439726,1726641039157,-500.0,0.00019178,2]
[338439727,1726641039167,-500.0,0.00019178,2]
[338439728,1726641039176,-608.29,0.00019178,2]
[338439729,1726641039185,-500.0,0.00019178,2]
[338439730,1726641039197,-735.43,0.00019178,2]
[338439731,1726641039206,-500.0,0.00019178,2]
[338439732,1726641039216,-500.0,0.00019178,2]
[338439733,1726641039225,-500.0,0.00019178,2]
[338439734,1726641039234,-500.0,0.00019178,2]
[338439735,1726641039243,-500.0,0.00019178,2]
[338439736,1726641039252,-913.07,0.00019178,2]
[338439737,1726641039262,-500.0,0.00019178,2]
[338439738,1726641039271,-500.0,0.00019178,2]
[338439739,1726641039281,-548.54,0.00019178,2]
[338439740,1726641039292,-184.50652819,0.00019178,2]
[338439741,1726641039301,-500.0,0.00019178,2]
[338439742,1726641039311,-500.0,0.00019178,2]
[338439743,1726641039321,-513.79137478,0.00019178,2]
[338439744,1726641039331,-1073.75,0.00019178,2]
[338439745,1726641039340,-500.0,0.00019178,2]
[338439746,1726641039349,-154.29237224,0.00019178,2]
[338439747,1726641039358,-500.0,0.00019178,2]
[338439748,1726641039367,-500.0,0.00019178,2]
[338439749,1726641039377,-500.0,0.00019178,2]
[338439750,1726641039387,-500.0,0.00019178,2]
[338439751,1726641039397,-500.0,0.00019178,2]
[338439752,1726641039406,-500.0,0.00019178,2]
[338439753,1726641039416,-500.0,0.00019178,2]
[338439754,1726641039426,-500.0,0.00019178,2]
[338439755,1726641039436,-500.0,0.00019178,2]
[338439756,1726641039445,-929.75,0.00019178,2]
[338439757,1726641039454,-500.0,0.00019178,2]
[338439758,1726641039463,-500.0,0.00019178,2]
[338439759,1726641039473,-500.82107924,0.00019178,2]
[338439760,1726641039483,-500.0,0.00019178,2]
[338439761,1726641039492,-980.36,0.00019178,2]
[338439762,1726641039501,-480.5328709,0.00019178,2]
[338439763,1726641039510,-500.0,0.00019178,2]
[338439764,1726641039519,-500.0,0.00019178,2]
[338439765,1726641039528,-2399.33,0.00019178,2]
[338439766,1726641039538,-500.0,0.00019178,2]
[338439767,1726641039548,-500.0,0.00019178,2]
[338439768,1726641039557,-151.0,0.00019178,2]
[338439769,1726641039567,-500.0,0.00019178,2]
[338439770,1726641039577,-500.0,0.00019178,2]
[338439771,1726641039586,-500.0,0.00019178,2]
[338439772,1726641039595,-277.363101,0.00019178,2]
[338439773,1726641039604,-500.0,0.00019178,2]
[338439774,1726641039614,-500.0,0.00019178,2]
[338439775,1726641039624,-277.363101,0.00019178,2]
[338439776,1726641039633,-500.0,0.00019178,2]
[338439777,1726641039643,-500.0,0.00019178,2]
[338439778,1726641039653,-500.0,0.00019178,2]
[338439779,1726641039662,-500.0,0.00019178,2]
[338439780,1726641039671,-658.58,0.00019178,2]
[338439781,1726641039681,-500.0,0.00019178,2]
[338439782,1726641039690,-500.0,0.00019178,2]
[338439783,1726641039700,-500.26,0.00019178,2]
[338439784,1726641039710,-500.0,0.00019178,2]
[338439785,1726641039719,-500.0,0.00019178,2]
[338439786,1726641039729,-500.0,0.00019178,2]
[338439787,1726641039739,-500.0,0.00019178,2]
[338439788,1726641039749,-500.0,0.00019178,2]
[338439789,1726641039758,-626.71542843,0.00019178,2]
[338439790,1726641039768,-500.0,0.00019178,2]
[338439792,1726641039778,-522.62,0.00019178,2]
[338439793,1726641039788,-2417.44,0.00019178,2]
[338439794,1726641039797,-500.0,0.00019178,2]
[338439795,1726641039808,-500.0,0.00019178,2]
[338439796,1726641039817,-508.55647824,0.00019178,2]
[338439797,1726641039827,-500.0,0.00019178,2]
[338439798,1726641039838,-500.0,0.00019178,2]
[338439799,1726641039847,-585.08,0.00019178,2]
[338439800,1726641039856,-500.0,0.00019178,2]
[338439801,1726641039866,-594.7,0.00019178,2]
[338439802,1726641039875,-500.0,0.00019178,2]
[338439803,1726641039885,-500.0,0.00019178,2]
[338439804,1726641039894,-500.0,0.00019178,2]
[338439805,1726641039904,-1079.14,0.00019178,2]
[338439806,1726641039915,-1079.14,0.00019178,2]
[338439807,1726641039925,-1079.14,0.00019178,2]
[338439808,1726641039936,-1079.14,0.00019178,2]
[338439810,1726641039945,-1079.14,0.00019178,2]
[338439812,1726641039955,-1079.14,0.00019178,2]
[338439814,1726641039965,-2456.7,0.00019178,2]
[338439818,1726641039975,-1079.14,0.00019178,2]
[338439820,1726641039986,-248.80975726,0.00019178,2]
[338439822,1726641039996,-1079.14,0.00019178,2]
[338439824,1726641040005,-500.0,0.00019178,2]
[338439826,1726641040015,-1079.14,0.00019178,2]
[338439828,1726641040025,-1079.14,0.00019178,2]
[338439830,1726641040034,-1079.14,0.00019178,2]
[338439832,1726641040044,-1079.14,0.00019178,2]
[338439834,1726641040054,-1079.14,0.00019178,2]
[338439836,1726641040074,-500.0,0.00019178,2]
[338439838,1726641040084,-1079.14,0.00019178,2]
[338439840,1726641040094,-500.0,0.00019178,2]
[338439841,1726641040103,-1079.14,0.00019178,2]
[338439842,1726641040113,-1079.14,0.00019178,2]
[338439843,1726641040123,-1079.14,0.00019178,2]
[338439845,1726641040132,-500.0,0.00019178,2]
[338439847,1726641040142,-1079.14,0.00019178,2]
[338439849,1726641040152,-500.0,0.00019178,2]
[338439851,1726641040161,-1079.14,0.00019178,2]
[338439853,1726641040171,-1079.14,0.00019178,2]
[338439855,1726641040181,-1079.14,0.00019178,2]
[338439857,1726641040190,-1079.14,0.00019178,2]
[338439859,1726641040200,-500.0,0.00019178,2]
[338439861,1726641040210,-1079.14,0.00019178,2]
[338439863,1726641040221,-1079.21861078,0.00019178,2]
[338439864,1726641040230,-500.0,0.00019178,2]
[338439865,1726641040241,-500.0,0.00019178,2]
[338439866,1726641040251,-500.0,0.00019178,2]
[338439868,1726641040261,-500.0,0.00019178,2]
[338439883,1726641040446,-500.0,0.00019178,2]
[338439885,1726641040459,-261.40377493,0.00019178,2]
[338439887,1726641040471,-434.84051108,0.00019178,2]
[338439888,1726641040481,-500.0,0.00019178,2]
[338439889,1726641040491,-231.62673947,0.00019178,2]
[338439890,1726641040501,-2007.71,0.00019178,2]
[338439891,1726641040512,-2007.71,0.00019178,2]
[338439893,1726641040523,-2007.71,0.00019178,2]
[338439895,1726641040533,-227.97090615,0.00019178,2]
[338439896,1726641040543,-2007.71,0.00019178,2]
[338439897,1726641040555,-2007.71,0.00019178,2]
[338439898,1726641040567,-2007.71,0.00019178,2]
[338439899,1726641040576,-2007.71,0.00019178,2]
[338439900,1726641040586,-2007.71,0.00019178,2]
[338439901,1726641040596,-2007.71,0.00019178,2]
[338439902,1726641040608,-2007.71,0.00019178,2]
[338439903,1726641040618,-2007.71,0.00019178,2]
[338439904,1726641040630,-500.0,0.00019178,2]
[338439905,1726641040639,-2007.71,0.00019178,2]
[338439906,1726641040650,-2007.71,0.00019178,2]
[338439907,1726641040660,-500.0,0.00019178,2]
[338439908,1726641040670,-2007.71,0.00019178,2]
[338439909,1726641040682,-2007.71,0.00019178,2]
[338439910,1726641040691,-2007.71,0.00019178,2]
[338439911,1726641040700,-2007.71,0.00019178,2]
[338439912,1726641040710,-2007.71,0.00019178,2]
[338439913,1726641040719,-2007.71,0.00019178,2]
[338439914,1726641040729,-2007.71,0.00019178,2]
[338439915,1726641040738,-2007.71,0.00019178,2]
[338439916,1726641040748,-2007.71,0.00019178,2]
[338439917,1726641040762,-2007.71,0.00019178,2]
[338439918,1726641040771,-863.42,0.00019178,2]
[338439919,1726641040781,-2007.78171115,0.00019178,2]
[338439920,1726641040791,-718.0,0.00019178,2]
[338439921,1726641040800,-500.0,0.00019178,2]
[338439922,1726641040809,-500.0,0.00019178,2]
[338439923,1726641040819,-500.0,0.00019178,2]
[338439924,1726641040828,-355.53956789,0.00019178,2]
[338439925,1726641040838,-500.0,0.00019178,2]
[338439926,1726641040849,-1702.78,0.00019178,2]
[338439927,1726641040859,-694.62,0.00019178,2]
[338439928,1726641040869,-500.0,0.00019178,2]
[338439929,1726641040880,-1000.0,0.00019178,2]
[338439930,1726641040889,-500.0,0.00019178,2]
[338439931,1726641040900,-500.0,0.00019178,2]
[338439932,1726641040911,-500.0,0.00019178,2]
[338439933,1726641040921,-500.0,0.00019178,2]
[338439934,1726641040930,-500.0,0.00019178,2]
[338439935,1726641040941,-1024.02,0.00019178,2]
[338439936,1726641040952,-2068.57,0.00019178,2]
[338439937,1726641040962,-500.0,0.00019178,2]
[338439938,1726641040974,-1279.03,0.00019178,2]
[338439939,1726641040987,-500.0,0.00019178,2]
[338439940,1726641040997,-500.50053108,0.00019178,2]
[338439941,1726641041007,-500.0,0.00019178,2]
[338439942,1726641041018,-500.0,0.00019178,2]
[338439943,1726641041029,-1823.48,0.00019178,2]
[338439944,1726641041039,-303.39703546,0.00019178,2]
[338439945,1726641041050,-500.0,0.00019178,2]
[338439946,1726641041065,-230.29370128,0.00019178,2]
[338439947,1726641041075,-500.0,0.00019178,2]
[338439948,1726641041086,-506.2982813,0.00019178,2]
[338439949,1726641041095,-223.49469264,0.00019178,2]
[338439950,1726641041104,-1961.46,0.00019178,2]
[338439951,1726641041113,-675.22,0.00019178,2]
[338439952,1726641041123,-151.0,0.00019178,2]
[338439953,1726641041134,-500.0,0.00019178,2]
[338439954,1726641041147,-500.0,0.00019178,2]
[338439955,1726641041158,-500.0,0.00019178,2]
[338439956,1726641041167,-151.0,0.00019178,2]
[338439957,1726641041178,-1017.94,0.00019178,2]
[338439958,1726641041189,-500.0,0.00019178,2]
[338439959,1726641041199,-500.0,0.00019178,2]
[338439960,1726641041210,-500.0,0.00019178,2]
[338439961,1726641041220,-500.0,0.00019178,2]
[338439962,1726641041230,-500.0,0.00019178,2]
[338439963,1726641041240,-500.0,0.00019178,2]
[338439964,1726641041250,-500.0,0.00019178,2]
[338439965,1726641041263,-500.0,0.00019178,2]
[338439966,1726641041273,-500.0,0.00019178,2]
[338439967,1726641041283,-2573.65,0.00019178,2]
[338439968,1726641041294,-567.17,0.00019178,2]
[338439969,1726641041305,-519.95334485,0.00019178,2]
[338439970,1726641041315,-2573.65,0.00019178,2]
[338439971,1726641041324,-500.0,0.00019178,2]
[338439972,1726641041335,-2573.65,0.00019178,2]
[338439973,1726641041347,-2573.65,0.00019178,2]
[338439974,1726641041358,-2573.65,0.00019178,2]
[338439975,1726641041369,-2573.65,0.00019178,2]
[338439976,1726641041380,-2573.65,0.00019178,2]
[338439977,1726641041393,-2573.65,0.00019178,2]
[338439978,1726641041403,-508.28852983,0.00019178,2]
[338439979,1726641041414,-2573.65,0.00019178,2]
[338439980,1726641041424,-2573.65,0.00019178,2]
[338439981,1726641041437,-2573.65,0.00019178,2]
[338439982,1726641041447,-2573.65,0.00019178,2]
[338439983,1726641041458,-500.0,0.00019178,2]
[338439984,1726641041470,-2573.65,0.00019178,2]
[338439985,1726641041481,-2573.65,0.00019178,2]
[338439986,1726641041492,-2573.65,0.00019178,2]
[338439987,1726641041503,-500.0,0.00019178,2]
[338439988,1726641041514,-2573.65,0.00019178,2]
[338439989,1726641041525,-2573.65,0.00019178,2]
[338439990,1726641041535,-2573.65,0.00019178,2]
[338439991,1726641041545,-2573.65,0.00019178,2]
[338439992,1726641041557,-2573.65,0.00019178,2]
[338439993,1726641041567,-500.0,0.00019178,2]
[338439994,1726641041575,-2573.65,0.00019178,2]
[338439995,1726641041585,-2573.65,0.00019178,2]
[338439996,1726641041594,-2573.65,0.00019178,2]
[338439997,1726641041603,-2573.71136509,0.00019178,2]
[338439998,1726641041612,-500.0,0.00019178,2]
[338439999,1726641041622,-500.0,0.00019178,2]
[338440000,1726641041631,-500.0,0.00019178,2]
[338440001,1726641041640,-500.0,0.00019178,2]
[338440002,1726641041651,-602.14,0.00019178,2]
[338440003,1726641041663,-151.0,0.00019178,2]
[338440004,1726641041674,-151.0,0.00019178,2]
[338440005,1726641041685,-264.603723,0.00019178,2]
[338440006,1726641041696,-894.54,0.00019178,2]
[338440007,1726641041705,-500.0,0.00019178,2]
[338440008,1726641041714,-151.0,0.00019178,2]
[338440009,1726641041724,-890.17,0.00019178,2]
[338440010,1726641041734,-500.0,0.00019178,2]
[338440011,1726641041744,-500.0,0.00019178,2]
[338440012,1726641041753,-2090.99,0.00019178,2]
[338440013,1726641041762,-174.24022888,0.00019178,2]
[338440014,1726641041771,-2090.99,0.00019178,2]
[338440015,1726641041780,-500.0,0.00019178,2]
[338440016,1726641041790,-2090.99,0.00019178,2]
[338440017,1726641041799,-2090.99,0.00019178,2]
[338440018,1726641041809,-2090.99,0.00019178,2]
[338440019,1726641041819,-500.0,0.00019178,2]
[338440020,1726641041828,-2090.99,0.00019178,2]
[338440021,1726641041838,-2090.99,0.00019178,2]
[338440022,1726641041848,-2090.99,0.00019178,2]
[338440023,1726641041858,-2090.99,0.00019178,2]
[338440024,1726641041870,-2090.99,0.00019178,2]
[338440025,1726641041882,-556.92,0.00019178,2]
[338440026,1726641041894,-2090.99,0.00019178,2]
[338440027,1726641041906,-500.0,0.00019178,2]
[338440028,1726641041916,-2090.99,0.00019178,2]
[338440029,1726641041927,-2090.99,0.00019178,2]
[338440030,1726641041936,-2090.99,0.00019178,2]
[338440031,1726641041946,-500.0,0.00019178,2]
[338440032,1726641041955,-2090.99,0.00019178,2]
[338440033,1726641041965,-2090.99,0.00019178,2]
[338440034,1726641041974,-2090.99,0.00019178,2]
[338440035,1726641041984,-2090.99,0.00019178,2]
[338440036,1726641041994,-2090.99,0.00019178,2]
[338440037,1726641042003,-2090.99,0.00019178,2]
[338440038,1726641042012,-2090.99,0.00019178,2]
[338440039,1726641042023,-500.0,0.00019178,2]
[338440040,1726641042034,-2090.99,0.00019178,2]
[338440041,1726641042044,-2090.99,0.00019178,2]
[338440042,1726641042055,-565.77,0.00019178,2]
[338440043,1726641042064,-2091.00120867,0.00019178,2]
[338440044,1726641042073,-500.0,0.00019178,2]
[338440045,1726641042083,-500.0,0.00019178,2]
[338440046,1726641042092,-505.23,0.00019178,2]
[338440047,1726641042102,-500.0,0.00019178,2]
[338440048,1726641042112,-500.0,0.00019178,2]
[338440049,1726641042121,-500.0,0.00019178,2]
[338440050,1726641042131,-500.0,0.00019178,2]
[338440051,1726641042140,-500.0,0.00019178,2]
[338440052,1726641042150,-500.0,0.00019178,2]
[338440053,1726641042160,-500.0,0.00019178,2]
[338440054,1726641042169,-500.0,0.00019178,2]
[338440055,1726641042179,-500.0,0.00019178,2]
[338440056,1726641042188,-500.0,0.00019178,2]
[338440057,1726641042198,-596.58861169,0.00019178,2]
[338440058,1726641042207,-500.0,0.00019178,2]
[338440059,1726641042217,-500.0,0.00019178,2]
[338440060,1726641042227,-500.0,0.00019178,2]
[338440061,1726641042236,-500.0,0.00019178,2]
[338440062,1726641042245,-500.0,0.00019178,2]
[338440063,1726641042258,-500.0,0.00019178,2]
[338440064,1726641042270,-771.53,0.00019178,2]
[338440065,1726641042279,-151.0,0.00019178,2]
[338440066,1726641042290,-151.0,0.00019178,2]